Cogmind - Beta 15 @@@ ROGUE MODE // 2025.10.11 @ 20:46:55 Player: Ripper Result: Destroyed by I1-3NY(R) with Subdweller Machine Gun Performance ------------- Evolutions (0) 0 Regions Visited (3) 600 Robots Destroyed (6) 30 Value Destroyed (138) 138 Prototype IDs (0) 0 Alien Tech Used (0) 0 Bonus (-4) -4 TOTAL SCORE: 764 Bonus ------- Friendly Fire -4 Cogmind --------- Core Integrity 0/250 Matter 270/300 Energy 124/125 System Corruption 0% Temperature Cool (6) Movement Rolling (110) Location -10/Subcaves Parts ------- > --- POWER (1) -------- Light Ion Engine > --- PROPULSION (2) --- Subdweller Monowheel > --- UTILITY (2) ------ (None) > --- WEAPON (2) ------- Riot Gun > --- INVENTORY (5) ---- Neutrino Core Peak State ------------ > --- POWER ------------ Neutrino Core > --- PROPULSION ------- Wheel Compact Wheel > --- UTILITY ---------- Scrap Shield > --- WEAPON ----------- Small Laser Light Assault Rifle > --- INVENTORY -------- Light Ion Engine Wheel Subdweller Monowheel Riot Gun [Rating: 14] Favorites ----------- Power Light Ion Engine Engine Light Ion Engine Power Core Neutrino Core Propulsion Wheel Wheel Wheel Utility Small Storage Unit Storage Small Storage Unit Protection Scrap Shield Weapon Light Assault Rifle Energy Gun Small Laser Ballistic Gun Light Assault Rifle Build | -11 -10 -10 -10 ------- Run | Yrd Mat Min Sub Slots Evolved . | . . . . Power . | . . . . Propulsion . | . . . . Utility . | . . . . Weapon . | . . . . Parts Attached 17 | 7 1 3 6 Power 4 | 1 . 1 2 Engine 3 | 1 . 1 1 Core 1 | . . . 1 Reactor . | . . . . Propulsion 5 | 2 . 1 2 Treads . | . . . . Leg . | . . . . Wheel 5 | 2 . 1 2 Hover . | . . . . Flight . | . . . . Utility 3 | 1 1 . 1 Device . | . . . . Storage 2 | 1 1 . . Processor . | . . . . Hackware . | . . . . Protection 1 | . . . 1 Artifact . | . . . . Weapon 5 | 3 . 1 1 Energy Gun 2 | 1 . . 1 Energy Cannon . | . . . . Ballistic Gun 3 | 2 . 1 . Ballistic Cannon . | . . . . Launcher . | . . . . Special Weapon . | . . . . Impact Weapon . | . . . . Slashing Weapon . | . . . . Piercing Weapon . | . . . . Special Melee Weapon . | . . . . Unidentified Prototypes . | . . . . Parts Lost 8 | . 1 1 6 Power 1 | . 1 . . Propulsion 3 | . . . 3 Utility 1 | . . . 1 Weapon 3 | . . 1 2 Highest Loss Streak 5 | . 1 1 5 To Critical Strikes . | . . . . Average Backups 3 | 1 5 5 1 Power . | . 1 1 . Propulsion 2 | . 2 2 1 Utility . | . . . . Weapon . | . 1 . . Tool/Special . | . . . . Unused Backups 3 | . 1 . 2 Power . | . . . . Propulsion 2 | . 1 . 1 Utility . | . . . . Weapon . | . . . . Tool/Special 1 | . . . 1 Average Slot Usage (%) 89 | . 96 96 79 Engine 12 | . 12 10 12 Wheel 27 | . 28 28 27 Storage 17 | . 25 28 2 Protection 3 | . . . 10 Energy Gun 7 | . . 9 13 Ballistic Gun 19 | . 28 18 11 Peak Build Rating 14 | 6 7 7 14 Average Rating 7 | 4 6 6 8 On Entrance 4 | . 6 6 7 Naked Turns . | . . . . Heaviest Build 34 | 11 14 16 34 Greatest Support 30 | 26 26 26 30 Greatest Overweight (x) 4 | . . . 4 Average Overweight (x) . | . . . . Largest Inventory Capacity 8 | 8 8 8 8 Average Capacity 6 | 7 8 8 5 Most Carried 7 | 4 7 7 6 Average Carried 3 | 2 5 4 1 Final Capacity 8 | 8 8 8 5 Final Carried 7 | 4 7 4 1 Class Distribution -------------------- 100% | Mutant Dominant Class ---------------- Mutant | -10/Materials Mutant | -10/Mines Mutant | -10/Subcaves Resources | -11 -10 -10 -10 ----------- Run | Yrd Mat Min Sub Matter Collected 519 | 207 252 35 25 Remotely . | . . . . Salvage Created 151 | . 81 37 33 Parts 13 | . 3 5 5 Haulers Intercepted . | . . . . Recyclers Shooed . | . . . . Parts Field Recycled . | . . . . Retrieved Matter . | . . . . Parts Self-Destructed 15 | . . . 15 Prevented . | . . . . Kills | -11 -10 -10 -10 ------- Run | Yrd Mat Min Sub Combat Hostiles Destroyed 6 | . 2 2 2 Melee 2 | . . 2 . Guns 4 | . 2 . 2 Classes Destroyed 3 | . 1 1 1 Swarmer 3 | . . 2 1 Grunt 2 | . 2 . . Subdweller 1 | . . . 1 Best Kill Streak 2 | . 2 2 1 Combat Bots Only 2 | . 2 2 1 Max Kills in Single Turn 1 | . 1 1 1 Gunslinging . | . . . . Exploded . | . . . . Melee 1 | . . 1 . Uniques/NPCs Destroyed . | . . . . Combat | -11 -10 -10 -10 -------- Run | Yrd Mat Min Sub Hostile Shots Fired 132 | . 22 47 63 Missed 47 | . 5 20 22 Hits 85 | . 17 27 41 Projectile 85 | . 17 27 41 Critical Strikes 4 | . . 1 3 Damage Taken 1183 | 4 206 228 745 Core 252 | 4 82 17 149 Absorbed by Shields . | . . . . Core Remaining (%) 98 | 98 . . . Volleys Fired 18 | . 9 . 9 Largest 2 | . 2 . 2 Hottest 60 | . 40 . 60 Shots Fired 36 | . 18 . 18 Gun 36 | . 18 . 18 Cannon . | . . . . Launcher . | . . . . Special . | . . . . Kinetic 27 | . 18 . 9 Thermal 9 | . . . 9 Explosive . | . . . . Electromagnetic . | . . . . Robot Hit Streak 9 | . 5 . 9 Robot Miss Streak 4 | . 4 . 2 Penetration Max . | . . . . Secondary Targets . | . . . . Shots Hit Robots 23 | . 9 . 14 Core Hits 10 | . 4 3 3 Critical Kills . | . . . . Critical Parts Destroyed 1 | . 1 . . Critical Strikes 1 | . 1 . . Destroy 1 | . 1 . . Melee Attacks . | . . . . Impact . | . . . . Slashing . | . . . . Piercing . | . . . . Sneak Attacks . | . . . . Combat Hostiles . | . . . . Follow-up Attacks . | . . . . Damage Inflicted 252 | 9 105 20 118 Guns 215 | . 97 . 118 Cannons . | . . . . Explosions . | . . . . Melee . | . . . . Ramming 37 | 9 8 20 . Kinetic 137 | . 97 . 40 Thermal 78 | . . . 78 Explosive . | . . . . Electromagnetic . | . . . . Impact . | . . . . Slashing . | . . . . Piercing . | . . . . Highest Corruption . | . . . . Average Corruption . | . . . . Corruption Purged . | . . . . Corruption Blocked . | . . . . Overload Shots . | . . . . Overflow Damage . | . . . . Projectiles . | . . . . Explosions . | . . . . Melee . | . . . . Knockbacks . | . . . . Impact . | . . . . Kinetic . | . . . . Secondary . | . . . . Self-Inflicted Damage 17 | 4 4 9 . Shots . | . . . . Rammed 7 | 1 1 5 . Targets Rammed 7 | 1 1 5 . Kicked . | . . . . Crushed . | . . . . Highest Temperature 6 | . 6 . 2 Average Temperature 4 | . 6 . 2 Received Heat Transfer 318 | . 117 . 201 Siege Activations . | . . . . Martial Activations . | . . . . Shielding Activations . | . . . . Robots Disrupted . | . . . . Combat Hostiles . | . . . . Robots Corrupted . | . . . . Combat Hostiles . | . . . . Parts Fried . | . . . . Impact Corruptions . | . . . . Robots Melted . | . . . . Combat Hostiles . | . . . . Parts Melted . | . . . . Heat Transferred 175 | . . . 175 Parts Sabotaged . | . . . . Parts Stolen . | . . . . Parts Stripped . | . . . . Power Chain Reactions . | . . . . Alert | -11 -10 -10 -10 ------- Run | Yrd Mat Min Sub Maximum Alert Level . | . . . . Low Security (%) 100 | 100 100 100 . Level 1 . | . . . . Level 2 . | . . . . Level 3 . | . . . . Level 4 . | . . . . Level 5 . | . . . . High Security . | . . . . Max Security . | . . . . Peak Influence 65 | . 40 65 . Initial 3 | . . 3 . Average 12 | . 5 27 . Influence Increases 152 | . 52 80 20 Destroy 0b10 Robot/C 100 | . 40 40 20 Destroy Leader 20 | . 10 10 . Successful Hack 2 | . 2 . . Lose Combat Pursuer 30 | . . 30 . Influence Decreases 152 | . 42 75 35 Entered New Map 15 | . . 7 8 Time Decay 112 | . 32 63 17 Lost Part 25 | . 10 5 10 Squads Dispatched 2 | . 2 . . Investigation . | . . . . Extermination . | . . . . Reinforcement 2 | . 2 . . Assault . | . . . . Garrison . | . . . . Intercept . | . . . . Searches Triggered . | . . . . Construction Impeded . | . . . . Haulers Reinforced . | . . . . Active Scanning Responses . | . . . . Cargo Convoy Interrupts . | . . . . Stealth | -11 -10 -10 -10 --------- Run | Yrd Mat Min Sub Distress Signals . | . . . . Communications Jammed . | . . . . Distress Signals . | . . . . Times Spotted 28 | . 12 4 12 Peak Tracking Total 7 | . 6 3 7 Tactical Retreats 2 | . . 2 . Traps | -11 -10 -10 -10 ------- Run | Yrd Mat Min Sub Traps Triggered . | . . . . Indirectly . | . . . . Trap Hack Attempts . | . . . . Triggered . | . . . . Disarmed . | . . . . Reprogrammed . | . . . . Reused . | . . . . Traps Extracted . | . . . . Installed . | . . . . Triggered . | . . . . Machines | -11 -10 -10 -10 ---------- Run | Yrd Mat Min Sub Machines Disabled . | . . . . Max in Single Turn . | . . . . Machines Repaired . | . . . . Machines Dismantled . | . . . . Machines Sabotaged . | . . . . Overloaded Fab Kills . | . . . . Hacking | -11 -10 -10 -10 --------- Run | Yrd Mat Min Sub Machines Accessed 1 | . 1 . . Terminals 1 | . 1 . . Fabricators . | . . . . Repair Stations . | . . . . Recycling Units . | . . . . Scanalyzers . | . . . . Garrison Access . | . . . . Total Hacks 1 | . 1 . . Successful 1 | . 1 . . Failed . | . . . . Catastrophic . | . . . . Database Lockouts . | . . . . Manual . | . . . . Terminals 1 | . 1 . . Fabricators . | . . . . Repair Stations . | . . . . Recycling Units . | . . . . Scanalyzers . | . . . . Garrison Access . | . . . . Terminal Hacks 1 | . 1 . . Record 1 | . 1 . . Fabricator Hacks . | . . . . Repair Station Hacks . | . . . . Recycling Unit Hacks . | . . . . Scanalyzer . | . . . . Garrison Access Hacks . | . . . . Unauthorized Hacks . | . . . . Terminals . | . . . . Fabricators . | . . . . Repair Stations . | . . . . Recycling Units . | . . . . Scanalyzers . | . . . . Garrison Access . | . . . . Data Cores Recovered . | . . . . Used . | . . . . Hacking Detections 1 | . 1 . . Full Trace Events . | . . . . Feedback Events . | . . . . Feedback Blocked . | . . . . Robot Schematics Acquired . | . . . . Robots Built . | . . . . Authchips . | . . . . Time . | . . . . Total Robot Build Rating . | . . . . Part Schematics Acquired . | . . . . Parts Built . | . . . . Authchips . | . . . . Time . | . . . . Total Part Build Rating . | . . . . Parts Repaired . | . . . . Time . | . . . . Parts Recycled . | . . . . Recycled Matter . | . . . . Retrieved Matter . | . . . . Retrieved Components . | . . . . Parts Scanalyzed . | . . . . Part Schematics Acquired . | . . . . Parts Damaged . | . . . . Bothacking | -11 -10 -10 -10 ------------ Run | Yrd Mat Min Sub Used RIF Installer . | . . . . Robots Hacked . | . . . . Non-combat . | . . . . Combat . | . . . . Robot Hacks Applied . | . . . . Relay Couplers Released . | . . . . Fabnet Peak Effective % . | . . . . Robots Rewired . | . . . . Allies Hacked . | . . . . Hacks Repelled . | . . . . Allies | -11 -10 -10 -10 -------- Run | Yrd Mat Min Sub Total Allies . | . . . . Largest Group . | . . . . Highest-Rated Group . | . . . . Highest-Rated Ally . | . . . . Total Orders . | . . . . Ally Attacks . | . . . . Total Damage . | . . . . Kills . | . . . . Allies Corrupted . | . . . . Allies Melted . | . . . . Intel | -11 -10 -10 -10 ------- Run | Yrd Mat Min Sub Active Infowar (turns) . | . . . . Robot Analysis Total . | . . . . Derelict Logs Recovered 3 | . . 2 1 Drone Launches . | . . . . Drone Recoveries . | . . . . Exploration | -11 -10 -10 -10 ------------- Run | Yrd Mat Min Sub Turns Passed 757 | 51 258 174 274 Spaces Moved 681 | 37 231 173 240 Core 5 | 2 . . 3 Treads . | . . . . Legs . | . . . . Wheels 676 | 35 231 173 237 Hover . | . . . . Flight . | . . . . Fastest Speed 50 | 50 90 90 90 Average Speed 91 | 87 90 90 93 Slowest Speed 250 | 90 90 90 250 Overloaded Moves . | . . . . Propulsion Burnouts . | . . . . Robots Hopped . | . . . . Potential Cave-ins . | . . . . Cave-ins Triggered . | . . . . Exploration Rate (%) 29 | 4 54 44 15 Regions Visited 3 Branch Regions 2 Pre-discovered Areas . | . . . . Known Exits Taken . | . . . . Unknown Exits Taken 3 | 1 1 1 . Scrap Searched 1 | . . 1 . Spaces Dug . | . . . . Terrain Destroyed . | . . . . Melee . | . . . . Projectile . | . . . . AOE . | . . . . Terrain Rammed . | . . . . Walls Destroyed . | . . . . Machines Disabled . | . . . . Actions | -11 -10 -10 -10 --------- Run | Yrd Mat Min Sub Total 785 | 54 265 191 275 Wait 35 | . 18 7 10 Move 679 | 37 230 172 240 Hop . | . . . . Pick Up 20 | 10 5 1 4 Fast Attach . | . . . . Attach 13 | 6 1 2 4 Detach . | . . . . Swap 6 | 1 . 2 3 Drop 8 | . 1 2 5 Fire 18 | . 9 . 9 Melee . | . . . . Ram 6 | . 1 5 . Kick . | . . . . Crush . | . . . . Escape Stasis . | . . . . Rewire . | . . . . Trap . | . . . . Miscellaneous . | . . . . Route ------- -11/Scrapyard -10/Materials -10/Mines -10/Subcaves (discovered 1 exit: Mat) History --------- Turn | Location | Event 11 | -11/Scrapyard | Discovered new exit (range 15) 52 | -11/Scrapyard | Entered Materials 303 | -10/Materials | Discovered new exit (range 8) 307 | -10/Materials | Build established: Mutant 310 | -10/Materials | Entered Mines 457 | -10/Mines | Learned 2 Materials zone layouts 458 | -10/Mines | Learned Materials terminal intel 483 | -10/Mines | Discovered new exit (range 3) 484 | -10/Mines | Entered Subcaves 518 | -10/Subcaves | Identified exit to Materials 573 | -10/Subcaves | Shifting Twisted Machinery released Sub. Shrapnel Launcher 637 | -10/Subcaves | Shifting Twisted Machinery released Riot Gun 670 | -10/Subcaves | Ambushed by swarm of Subdwellers 699 | -10/Subcaves | Core integrity fell below 50% 711 | -10/Subcaves | Core integrity fell below 20% 719 | -10/Subcaves | Lost 4 allies 738 | -10/Subcaves | Lost 5 parts (2n1u2w) 758 | -10/Subcaves | Destroyed by I1-3NY(R) with Subdweller Machine Gun Last Messages --------------- RI-R4N(g) destroyed. 67-UFF(R) suffers critical hit (Burn). S-10 Pest destroyed. 8F-FGB(g) destroyed. 9D-NSC(R) destroyed. Flight Unit fries itself beyond repair. 2L-K87(g) destroyed. Lgt. Ion Engine fries itself beyond repair. PP-M0K(R) affixes Scrap Shield Fragment to Scrap Shield. Scrap Shield destroyed. Com. Wheel destroyed. Lgt. Assault Rifle fries itself beyond repair. Wheel destroyed. Sml. Laser destroyed. Lgt. Assault Rifle destroyed. Critical hit (Burn: +37). Y-45 Defender destroyed. Imp. Ion Engine fries itself beyond repair. Wheel destroyed. Map ----- +----------------------------------------------------+ | ???## "###! """ ##### [ #??????????????? | | ????# " #"#%" != ## # *%! #??????????????? | | ???## """" !=%![ ! #??????????????? | | ?# "=%=%[%!%[ "#?????????????????? | | # "" ######!=* % #??????????????????? | | ?? " ##????##### ### ##?????????????????? | | ? " #?????????# ##### ##????????????????? | | ?? ?????????# ##???## #????????????????? | | ???? ?????????## ##?????## ##????????????????? | | ???? ??????????####??????## #?????????????????? | | ???? ??????????????####???# #?????????????????? | | ????# ??????????????? ???# #?????????????????? | | ?????????????????????# ??# ##?????????????????? | | ?????????????????????? ?## #??????????????????? | | ??????????????????????# ?# ##?????????????????? | | ?????????????????????## ?## ##????????????????? | | ?????????????????????# #?## #??? ???????????? | | ????????????????????## ### ##?? ???????????? | | ????????????????????# ##?? ?????????? | | ?????????????????????# R #?? ????????? | | ?????????????????????### ### ???????? | | ???????????????????????### #??????????? | | ???????????????????????### #??????????? | | ??????????????????????## R #??????????? | | ??????????????????????# R ##??????????? | | ??????????????????????# @ #####???????????? | | ??????????????????????# R#####???????????????? | | ????????????????????### R#########????????????? | | ???????????????????## ### ##???????????? | | ???????????????????# #???????????? | | ???????????????????# #???????????? | | ???????????????????# ##### ##### ##???????????? | | ???????????????????####???####???####????????????? | | ?????????????????????????????????????????????????? | | ?????????????????????????????????????????????????? | | ?????????????????????????????????????????????????? | | ?????????????????????????????????????????????????? | | ?????????????????????????????????????????????????? | | ?????????????????????????????????????????????????? | | ?????????????????????????????????????????????????? | | ?????????????????????????????????????????????????? | | ?????????????????????????????????????????????????? | | ?????????????????????????????????????????????????? | | ?????????????????????????????????????????????????? | | ?????????????????????????????????????????????????? | | ?????????????????????????????????????????????????? | | ?????????????????????????????????????????????????? | | ?????????????????????????????????????????????????? | | ?????????????????????????????????????????????????? | | ?????????????????????????????????????????????????? | +----------------------------------------------------+ Best States ------------- Heat Dissipation 25 Energy Generation 19 Energy Capacity 315 Matter Stores 450 Matter Capacity 450 Sight Range 16 Terrain Scan Density 10 Armor Coverage 800 Evasion (%) 42 Item Schematics ----------------- None Robot Schematics ------------------ None Fabricated ------------ Nothing Repaired ---------- Nothing Alien Tech Used ----------------- None Achievements -------------- None Challenges ------------ None Game ------ Seed PlexusDynamicCanceller Manual? 0 Play Time 00:14:49 Cumulative 17.4 hours Start 2025.10.08 @ 21:08:51 End 2025.10.11 @ 20:46:55 Sessions 3 Manual Loads 0 Difficulty Rogue Special Mode None Game No. 57 Rogue 57 Adventurer 0 Explorer 0 Win Type - Total 0 Types 0/0/0/0/0/0/0/0/0/0 Lore% 5 Gallery% 19 Achievement% 18 Wizard Run 0 Options --------- Layout 1 ASCII 0 Keyboard 0 Movement Numpad Keybinds 0 Fullscreen 1 Font 24/Smallcaps Map View 50x35 Zoom Use 0% Tactical HUD 0 Map Filters NONE Filters NONE Steam 1 RUN: ee88f67b-ef49-4823-a487-05b32c0008c3